bitfinex/quotes_BTCUSD_20250730
["timestamp","ask_amount","ask_price","bid_price","bid_amount"]
[1753908282016,4.09223296,117270.0,117260.0,0.12916]
[1753908282780,4.12291348,117270.0,117260.0,0.001]
[1753908283004,4.20739078,117270.0,117260.0,0.001]
[1753908283686,4.17771026,117270.0,117260.0,0.06295]
[1753908284632,4.21610798,117270.0,117260.0,0.09285]
[1753908284856,4.21710798,117270.0,117260.0,0.09385]
[1753908285564,4.21810798,117270.0,117260.0,0.09785]
[1753908287355,4.21810798,117270.0,117260.0,0.005]
[1753908287584,4.24840798,117270.0,117260.0,0.005]
[1753908289207,3.81047972,117270.0,117260.0,0.06695]
[1753908289426,4.23576968,117270.0,117260.0,0.06695]
[1753908289635,4.24372807,117270.0,117260.0,0.06695]
[1753908289852,4.23576968,117270.0,117260.0,0.09815]
[1753908290098,4.10480968,117270.0,117260.0,0.10336]
[1753908290333,4.23580968,117270.0,117260.0,0.10336]
[1753908291436,1.32714268,117270.0,117260.0,0.10336]
[1753908291652,4.73580968,117270.0,117260.0,0.10336]
[1753908291866,4.73580968,117270.0,117260.0,0.13636]
[1753908292467,4.74376804,117270.0,117260.0,0.13636]
[1753908293188,4.61276804,117270.0,117260.0,0.13636]
[1753908293415,4.70976065,117270.0,117260.0,0.13636]
[1753908294742,4.79963065,117270.0,117260.0,0.13636]
[1753908294966,4.70976065,117270.0,117260.0,0.13636]
[1753908295395,1.80109365,117270.0,117260.0,0.13636]
[1753908295607,4.70976065,117270.0,117260.0,0.13636]
[1753908297197,4.7177235,117270.0,117260.0,0.13636]
[1753908297420,4.70976065,117270.0,117260.0,0.13636]
[1753908297879,4.71772364,117270.0,117260.0,0.13636]
[1753908299363,4.70976065,117270.0,117260.0,0.13636]
[1753908300021,4.6937677,117270.0,117260.0,0.13636]
[1753908300679,4.71214387,117270.0,117260.0,0.13636]
[1753908300881,4.73604994,117270.0,117260.0,0.13636]
[1753908301111,4.72808125,117270.0,117260.0,0.13636]
[1753908301356,4.73605543,117270.0,117260.0,0.005]
[1753908301582,4.97402439,117270.0,117260.0,0.005]
[1753908301801,4.56639613,117270.0,117260.0,0.005]
[1753908302056,4.97402439,117270.0,117260.0,0.005]
[1753908302292,4.9979373,117270.0,117260.0,0.005]
[1753908302951,4.9979373,117270.0,117260.0,0.0355]
[1753908302952,4.93605678,117270.0,117260.0,0.0355]
[1753908303178,4.73605678,117270.0,117260.0,0.0355]
[1753908304654,4.72270809,117270.0,117260.0,0.0355]
[1753908304841,4.81257809,117270.0,117260.0,0.0355]
[1753908305295,4.8355925,117270.0,117260.0,0.0355]
[1753908307243,4.84894148,117270.0,117260.0,0.0355]
[1753908307694,4.878622,117270.0,117260.0,0.0355]
[1753908308327,1.969955,117270.0,117260.0,0.09471]
[1753908308526,4.878622,117270.0,117260.0,0.09471]
[1753908308746,1.969955,117270.0,117260.0,0.09471]
[1753908308942,4.878622,117270.0,117260.0,0.09471]
[1753908309395,4.657752,117270.0,117260.0,0.09471]
[1753908309591,4.65717139,117270.0,117260.0,0.12987256]
[1753908309805,4.67462041,117270.0,117260.0,0.12987256]
[1753908310261,4.67467321,117270.0,117260.0,0.12987256]
[1753908310494,4.30444124,117270.0,117260.0,0.12987256]
[1753908310725,4.5810695,117270.0,117260.0,0.12987256]
[1753908310959,4.7120695,117270.0,117260.0,0.12987256]
[1753908311679,4.30444124,117270.0,117260.0,0.12987256]
[1753908311894,4.7120695,117270.0,117260.0,0.12987256]
[1753908313119,4.30444124,117270.0,117260.0,0.12987256]
[1753908313354,4.7120695,117270.0,117260.0,0.12987256]
[1753908313592,4.72542108,117270.0,117260.0,0.12987256]
[1753908313824,1.81675408,117270.0,117260.0,0.12987256]
[1753908314060,4.72542108,117270.0,117260.0,0.12987256]
[1753908315289,3.57650899,117270.0,117260.0,0.12987256]
[1753908315534,3.72452255,117270.0,117260.0,0.12987256]
[1753908315776,3.73304951,117270.0,117260.0,0.12987256]
[1753908316011,4.09049853,117270.0,117260.0,0.12987256]
[1753908316709,4.49812679,117270.0,117260.0,0.12987256]
[1753908316918,4.5911312,117270.0,117260.0,0.12987256]
[1753908317127,4.59965853,117270.0,117260.0,0.12987256]
[1753908317333,4.59965845,117270.0,117260.0,0.12987256]
[1753908317751,4.5911312,117270.0,117260.0,0.12987256]
[1753908318192,4.58260409,117270.0,117260.0,0.12987256]
[1753908318641,4.5911312,117270.0,117260.0,0.12987256]
[1753908319107,4.16644887,117270.0,117260.0,0.12987256]
[1753908319320,4.5740772,117270.0,117260.0,0.12987256]
[1753908320158,4.58260431,117270.0,117260.0,0.12987256]
[1753908320602,4.58260423,117270.0,117260.0,0.12987256]
[1753908320812,4.5740772,117270.0,117260.0,0.12987256]
[1753908321041,4.55570103,117270.0,117260.0,0.12987256]
[1753908321701,4.56422806,117270.0,117260.0,0.12987256]
[1753908322125,4.42474103,117270.0,117260.0,0.12987256]
[1753908322366,4.00344782,117270.0,117260.0,0.12987256]
[1753908323059,4.00344782,117270.0,117260.0,0.53750082]
[1753908323522,4.00344782,117270.0,117260.0,0.12987256]
[1753908323960,0.67030352,117270.0,117260.0,0.53750082]
[1753908324165,0.65695497,117270.0,117260.0,0.53750082]
[1753908324372,0.52599497,117270.0,117260.0,0.53750082]
[1753908324584,0.65695497,117270.0,117260.0,0.53750082]
[1753908324793,0.65695497,117270.0,117260.0,0.53350082]
[1753908324794,0.65595497,117270.0,117260.0,0.53350082]
[1753908325127,0.65695497,117270.0,117260.0,0.54050082]
[1753908325732,0.65695497,117270.0,117260.0,0.13267]
[1753908325947,0.65595497,117270.0,117260.0,0.13267]
[1753908326160,0.65695497,117270.0,117260.0,0.13367]
[1753908326809,0.65695497,117270.0,117260.0,0.54129826]
[1753908327315,0.65695422,117270.0,117260.0,0.54129826]
[1753908327940,0.65695536,117270.0,117260.0,0.54129826]
[1753908328391,0.64895691,117270.0,117260.0,0.54129826]
[1753908330228,0.63296,117270.0,117260.0,0.54129826]
[1753908332106,0.63296,117270.0,117260.0,0.13367]
[1753908332312,0.63296,117270.0,117260.0,0.54129826]
[1753908333833,0.63296,117270.0,117260.0,0.13367]
[1753908334047,0.63296,117270.0,117260.0,0.54129826]
[1753908334291,0.63296,117270.0,117260.0,0.13367]
[1753908334504,0.63296,117270.0,117260.0,0.54129826]
[1753908336233,0.63092,117270.0,117260.0,0.54129826]
[1753908338889,0.63092,117270.0,117260.0,0.13367]
[1753908339092,0.13092,117270.0,117260.0,0.13367]
[1753908340878,0.63092,117270.0,117260.0,0.13367]
[1753908342195,0.13092,117270.0,117260.0,0.13367]
[1753908342423,0.8019928,117270.0,117260.0,0.0691]
[1753908342636,0.8019928,117270.0,117260.0,0.0385]
[1753908342637,4.08114246,117270.0,117260.0,0.0385]
[1753908342865,4.08114246,117270.0,117260.0,0.008]
[1753908343343,4.08913809,117270.0,117260.0,0.008]
[1753908343547,3.62290995,117270.0,117260.0,0.04]
[1753908343751,4.02254258,117270.0,117260.0,0.0718]
[1753908344237,3.61491432,117270.0,117260.0,0.0718]
[1753908344473,3.64059488,117270.0,117260.0,0.0718]
[1753908344693,3.63143892,117270.0,117260.0,0.0718]
[1753908344926,0.61388499,117270.0,117260.0,0.0718]
[1753908345156,3.45236499,117270.0,117260.0,0.0718]
[1753908345394,3.46089232,117270.0,117260.0,0.0718]
[1753908345663,3.47424004,117270.0,117260.0,0.13235]
[1753908345957,3.64479791,117270.0,117260.0,0.13235]
[1753908346202,3.47425131,117270.0,117260.0,0.13235]
[1753908346433,3.31774984,117270.0,117260.0,0.54523826]
[1753908346658,3.44866984,117270.0,117260.0,0.54523826]
[1753908347552,3.44866984,117270.0,117260.0,0.13761]
[1753908348628,3.29230355,117270.0,117260.0,0.54523826]
[1753908348839,3.32274772,117270.0,117260.0,0.54523826]
[1753908349053,0.48426772,117270.0,117260.0,0.54523826]
[1753908349961,0.47092,117270.0,117260.0,0.54523826]
[1753908351310,0.13092,117270.0,117260.0,0.54523826]
[1753908351531,3.19592902,117280.0,117270.0,0.0627]
[1753908351748,3.43529038,117280.0,117270.0,0.06484]
[1753908351958,3.43529038,117280.0,117270.0,0.12851]
[1753908352173,3.43529038,117280.0,117270.0,0.53613826]
[1753908352821,3.43629038,117280.0,117270.0,0.53713826]
[1753908353042,3.43629038,117280.0,117270.0,0.12951]
[1753908353801,3.43729038,117280.0,117270.0,0.13351]
[1753908354483,3.45063611,117280.0,117270.0,0.13351]
[1753908354708,3.44263476,117280.0,117270.0,0.13351]
[1753908354931,3.45063686,117280.0,117270.0,0.13351]
[1753908356360,3.45063686,117280.0,117270.0,0.54113826]
[1753908356545,3.54364018,117280.0,117270.0,0.13351]
[1753908356745,3.54364018,117280.0,117270.0,0.12825]
[1753908357179,3.55216627,117280.0,117270.0,0.12825]
[1753908357601,3.54364018,117280.0,117270.0,0.12825]
[1753908358001,3.45063686,117280.0,117270.0,0.12825]
[1753908358223,3.45916288,117280.0,117270.0,0.12825]
[1753908358363,3.45916288,117280.0,117270.0,0.0677]
[1753908358567,3.87531737,117280.0,117270.0,0.0677]
[1753908358792,3.88384382,117280.0,117270.0,0.0677]
[1753908359001,3.85983894,117280.0,117270.0,0.0356]
[1753908359195,4.03889745,117280.0,117270.0,0.0356]
[1753908359398,4.05490019,117280.0,117270.0,0.0356]
[1753908359596,4.03732294,117280.0,117270.0,0.005]
[1753908359802,4.05727721,117280.0,117270.0,0.005]
[1753908360035,4.14175451,117280.0,117270.0,0.005]
[1753908360698,4.13322806,117280.0,117270.0,0.005]
[1753908361149,4.15886906,117280.0,117270.0,0.005]
[1753908362198,3.7512408,117280.0,117270.0,0.005]
[1753908362396,3.7179408,117280.0,117270.0,0.005]
[1753908362628,4.09992976,117280.0,117270.0,0.005]
[1753908362849,4.07592394,117280.0,117270.0,0.005]
[1753908363031,4.10956688,117280.0,117270.0,0.005]
[1753908363465,4.12556987,117280.0,117270.0,0.005]
[1753908363647,4.13322887,117280.0,117270.0,0.005]
[1753908363904,4.57217372,117280.0,117270.0,0.005]
[1753908364213,3.78092288,117280.0,117270.0,0.005]
[1753908364391,4.18855114,117280.0,117270.0,0.005]
[1753908365038,3.78092288,117280.0,117270.0,0.005]
[1753908365411,4.18855114,117280.0,117270.0,0.005]
[1753908365939,1.35007114,117280.0,117270.0,0.005]
[1753908366143,4.20698404,117280.0,117270.0,0.005]
[1753908366923,4.20698351,117280.0,117270.0,0.005]
[1753908368585,4.40698351,117280.0,117270.0,0.005]
[1753908369633,4.81461177,117280.0,117270.0,0.005]
[1753908370062,4.81460795,117280.0,117270.0,0.005]
[1753908370483,4.83960795,117280.0,117270.0,0.005]
[1753908371547,4.89086795,117280.0,117270.0,0.005]
[1753908371755,0.18761674,117260.0,117250.0,0.05396]
[1753908371963,3.73664482,117260.0,117250.0,0.05396]
[1753908372163,3.33701509,117260.0,117250.0,0.05396]
[1753908372366,3.74464335,117260.0,117250.0,0.05396]
[1753908372524,4.24464335,117260.0,117250.0,0.05396]
[1753908372727,4.23664482,117260.0,117250.0,0.05396]
[1753908372938,4.23664482,117260.0,117250.0,0.05705]
[1753908373341,4.23764482,117260.0,117250.0,0.06405]
[1753908373977,4.23864482,117260.0,117250.0,0.06505]
[1753908374178,4.25199376,117260.0,117250.0,0.06505]
[1753908377297,4.25199376,117260.0,117250.0,0.06505]
[1753908378307,1.41351376,117260.0,117250.0,0.06505]
[1753908378522,4.25199376,117260.0,117250.0,0.06505]
[1753908381086,4.25199376,117260.0,117250.0,0.008]
[1753908381087,4.3606333,117260.0,117250.0,0.008]
[1753908381334,4.59427217,117260.0,117250.0,0.008]
[1753908382205,4.59327217,117260.0,117250.0,0.001]
[1753908382425,4.59427217,117260.0,117250.0,0.003]
[1753908382659,4.59427152,117260.0,117250.0,0.003]
[1753908382873,4.59327152,117260.0,117250.0,0.002]
[1753908383079,4.59427152,117260.0,117250.0,0.003]
[1753908384398,3.35758432,117250.0,117240.0,0.05649614]
[1753908384621,4.08301715,117250.0,117240.0,0.0319]
[1753908384851,4.14200715,117250.0,117240.0,0.0319]
[1753908385281,4.16765415,117250.0,117240.0,0.0319]
[1753908385439,4.19733467,117250.0,117240.0,0.0319]
[1753908385868,4.22399793,117250.0,117240.0,0.0369]
[1753908386076,4.22675793,117250.0,117240.0,0.0369]
[1753908386288,4.25219762,117250.0,117240.0,0.0369]
[1753908386483,4.25319762,117250.0,117240.0,0.006]
[1753908386699,4.28569762,117250.0,117240.0,0.006]
[1753908386897,4.78569762,117250.0,117240.0,0.006]
[1753908387098,1.94721762,117250.0,117240.0,0.006]
[1753908387391,4.79904818,117250.0,117240.0,0.006]
[1753908387633,4.82530149,117250.0,117240.0,0.006]
[1753908389043,4.82530149,117250.0,117240.0,0.001]
[1753908389263,4.82430149,117250.0,117240.0,0.001]
[1753908389493,3.23504862,117240.0,117230.0,0.0319]
[1753908389726,4.02276145,117240.0,117230.0,0.03204616]
[1753908390177,4.04841345,117240.0,117230.0,0.03204616]
[1753908390405,4.03241348,117240.0,117230.0,0.03204616]
[1753908390665,4.03341348,117240.0,117230.0,0.03204616]
[1753908391437,4.04939514,117240.0,117230.0,0.03204616]
[1753908391763,4.05039514,117240.0,117230.0,0.03504616]
[1753908391953,3.35761488,117230.0,117220.0,0.08839616]
[1753908392199,4.07360776,117230.0,117220.0,0.09050075]
[1753908392458,3.28001682,117230.0,117220.0,0.49812901]
[1753908392694,3.30196052,117230.0,117220.0,0.49812901]
[1753908392929,2.83848,117230.0,117220.0,0.46951285]
[1753908393166,0.001,117230.0,117220.0,0.47051285]
[1753908393409,0.001,117230.0,117220.0,0.47451285]
[1753908393637,0.15654326,117250.0,117240.0,0.40762826]
[1753908393869,0.99654326,117250.0,117240.0,0.46938826]
[1753908394092,0.36566326,117250.0,117240.0,0.47255826]
[1753908394367,0.02844174,117230.0,117220.0,0.13600459]
[1753908394601,0.36566326,117250.0,117240.0,0.00147]
[1753908394832,0.02566326,117250.0,117240.0,0.40909826]
[1753908395068,2.83848,117250.0,117240.0,0.47129826]
[1753908395760,2.83948,117250.0,117240.0,0.47229826]
[1753908395997,0.5854773,117250.0,117240.0,0.47229826]
[1753908396238,0.5874773,117250.0,117240.0,0.47329826]
[1753908396475,0.5874773,117250.0,117240.0,0.53307826]
[1753908397153,0.11145244,117250.0,117240.0,0.53307826]
[1753908397386,0.52697514,117250.0,117240.0,0.53307826]
[1753908398534,0.02697514,117250.0,117240.0,0.53307826]
[1753908398758,0.52697514,117250.0,117240.0,0.53307826]
[1753908399639,0.54032305,117250.0,117240.0,0.53307826]
[1753908399848,0.52697514,117250.0,117240.0,0.12545]
[1753908400071,3.49796492,117250.0,117240.0,0.0652]
[1753908400297,3.85911746,117250.0,117240.0,0.0336]
[1753908400538,3.87510771,117250.0,117240.0,0.002]
[1753908400785,3.90075571,117250.0,117240.0,0.002]
[1753908401711,4.57837997,117250.0,117240.0,0.002]
[1753908402185,4.60424613,117250.0,117240.0,0.002]
[1753908402920,4.60224613,117250.0,117240.0,0.001]
[1753908403431,4.60224613,117250.0,117220.0,0.00012459]
[1753908403432,3.46203477,117230.0,117220.0,0.00012459]
[1753908403670,4.2171384,117230.0,117220.0,0.00012459]
[1753908403913,4.2575084,117230.0,117220.0,0.00012459]
[1753908404159,4.29651804,117230.0,117220.0,0.00012459]
[1753908404399,4.32151804,117230.0,117220.0,0.00012459]
[1753908404653,3.18361487,117200.0,117190.0,0.08050459]
[1753908404889,3.89103773,117200.0,117190.0,0.08099053]
[1753908405119,3.31276101,117200.0,117190.0,0.08099053]
[1753908405351,3.49676352,117200.0,117190.0,0.08099053]
[1753908405586,3.32611498,117200.0,117190.0,0.08099053]
[1753908405827,3.30151867,117200.0,117190.0,0.08399053]
[1753908406070,3.31958234,117200.0,117190.0,0.08899053]
[1753908406317,3.21804137,117200.0,117190.0,0.08899053]
[1753908407026,3.23510511,117200.0,117190.0,0.08899053]
[1753908407301,3.40575357,117200.0,117190.0,0.08899053]
[1753908407561,3.88076271,117200.0,117190.0,0.07168594]
[1753908407786,3.96524001,117200.0,117190.0,0.07168594]
[1753908408662,3.96524001,117200.0,117190.0,0.00848594]
[1753908408879,3.96524001,117200.0,117190.0,0.04078594]
[1753908409108,3.96524001,117200.0,117190.0,0.07158594]
[1753908409965,3.95670781,117200.0,117190.0,0.07158594]
[1753908413032,3.94335376,117200.0,117190.0,0.07158594]
[1753908414067,3.5357255,117200.0,117190.0,0.07158594]
[1753908414276,3.94335376,117200.0,117190.0,0.07158594]
[1753908415298,3.77270508,117200.0,117190.0,0.13136594]
[1753908415512,3.3093288,117200.0,117190.0,0.13136594]
[1753908415764,3.31786122,117200.0,117190.0,0.13136594]
[1753908415979,3.33121514,117200.0,117190.0,0.13136594]
[1753908416193,3.5018636,117200.0,117190.0,0.13136594]
[1753908416794,3.5689436,117200.0,117190.0,0.13136594]
[1753908417148,3.24673711,117200.0,117190.0,0.13136594]
[1753908417349,3.26070166,117200.0,117190.0,0.13136594]
[1753908417553,3.26369166,117200.0,117190.0,0.13136594]
[1753908418858,3.33077166,117200.0,117190.0,0.13136594]
[1753908419387,3.26369166,117200.0,117190.0,0.13136594]
[1753908419618,3.34816896,117200.0,117190.0,0.13136594]
[1753908420082,3.98499392,117200.0,117190.0,0.13136594]
[1753908420495,3.57736566,117200.0,117190.0,0.07158594]
[1753908420744,3.98499392,117200.0,117190.0,0.07158594]
[1753908421157,3.97646194,117200.0,117190.0,0.07158594]
[1753908422421,3.79728113,117200.0,117190.0,0.07158594]
[1753908422639,3.8058134,117200.0,117190.0,0.13219594]
[1753908423044,3.39818514,117200.0,117190.0,0.13219594]
[1753908423402,3.40671756,117200.0,117190.0,0.07158594]
[1753908423602,3.57736602,117200.0,117190.0,0.07158594]
[1753908423813,3.98499428,117200.0,117190.0,0.07158594]
[1753908424440,3.8009919,117200.0,117190.0,0.07158594]
[1753908425317,3.80099183,117200.0,117190.0,0.07158594]
[1753908425581,3.97164029,117200.0,117190.0,0.07158594]
[1753908427117,3.98017271,117200.0,117190.0,0.07158594]
[1753908427246,3.80952425,117200.0,117190.0,0.07158594]
[1753908427452,3.82287812,117200.0,117190.0,0.07158594]
[1753908428104,3.80581335,117200.0,117190.0,0.07158594]
[1753908428307,3.97646181,117200.0,117190.0,0.07158594]
[1753908428516,3.8143457,117200.0,117190.0,0.07158594]
[1753908429138,1.35507316,117200.0,117190.0,0.07158594]
[1753908429370,3.98499416,117200.0,117190.0,0.07158594]
[1753908429587,3.97646203,117200.0,117190.0,0.07158594]
[1753908430217,3.80581357,117200.0,117190.0,0.07158594]
[1753908430458,3.9924457,117200.0,117190.0,0.07158594]
[1753908432457,3.58481744,117200.0,117190.0,0.07158594]
[1753908432662,3.82179724,117200.0,117190.0,0.07158594]
[1753908433516,3.45581587,117200.0,117190.0,0.07158594]
[1753908433755,3.94961529,117200.0,117190.0,0.04078594]
[1753908433977,3.97929581,117200.0,117190.0,0.00848594]
[1753908434425,3.57166755,117200.0,117190.0,0.00848594]
[1753908435493,3.58911657,117200.0,117190.0,0.00848594]
[1753908436159,3.18148831,117200.0,117190.0,0.00848594]
[1753908436380,3.64391335,117200.0,117190.0,0.00848594]
[1753908436611,3.63538115,117200.0,117190.0,0.00848594]
[1753908436848,3.61939748,117200.0,117190.0,0.00848594]
[1753908437069,3.63538337,117200.0,117190.0,0.00848594]
[1753908437563,3.66104137,117200.0,117190.0,0.00848594]
[1753908438511,3.62352165,117200.0,117190.0,0.03858594]
[1753908438736,3.62550165,117200.0,117190.0,0.03858594]
[1753908438937,3.96550165,117200.0,117190.0,0.03858594]
[1753908439146,3.96550165,117200.0,117190.0,0.06948594]
[1753908439821,3.57493786,117200.0,117190.0,0.06948594]
[1753908440074,3.98256612,117200.0,117190.0,0.06948594]
[1753908440285,1.35264512,117200.0,117190.0,0.06948594]
[1753908440505,3.98256612,117200.0,117190.0,0.06948594]
[1753908440690,3.98555612,117200.0,117190.0,0.06948594]
[1753908440838,3.97702407,117200.0,117190.0,0.06948594]
[1753908441278,3.56939581,117200.0,117190.0,0.06948594]
[1753908441478,3.97702407,117200.0,117190.0,0.06948594]
[1753908442992,1.34710307,117200.0,117190.0,0.06948594]
[1753908443198,3.97702407,117200.0,117190.0,0.06948594]
[1753908444490,3.97702407,117200.0,117190.0,0.13208594]
[1753908444491,3.12684508,117200.0,117190.0,0.13208594]
[1753908444708,3.24905082,117200.0,117190.0,0.13529594]
[1753908445133,3.24051884,117200.0,117190.0,0.13529594]
[1753908445405,3.25758273,117200.0,117190.0,0.13529594]
[1753908445625,3.34206003,117200.0,117190.0,0.13529594]
[1753908445857,3.34206003,117200.0,117190.0,0.13208594]
[1753908446267,3.40584003,117200.0,117190.0,0.13208594]
[1753908446737,3.40788003,117200.0,117190.0,0.13208594]
[1753908447192,3.98928236,117200.0,117190.0,0.07147594]
[1753908447405,3.98874728,117200.0,117190.0,0.03858594]
[1753908448252,3.98874728,117200.0,117190.0,0.06948594]
[1753908449335,3.98021501,117200.0,117190.0,0.06948594]
[1753908449540,3.98021501,117200.0,117190.0,0.03858594]
[1753908449753,3.98021501,117200.0,117190.0,0.06948594]
[1753908451532,3.41046998,117200.0,117190.0,0.06948594]
[1753908451777,3.82663059,117200.0,117190.0,0.06948594]
[1753908452430,3.83516301,117200.0,117190.0,0.06948594]
[1753908452667,3.82663059,117200.0,117190.0,0.06948594]
[1753908454626,1.19670959,117200.0,117190.0,0.06948594]
[1753908454822,3.82663059,117200.0,117190.0,0.06948594]
[1753908455039,4.00581147,117200.0,117190.0,0.06948594]
[1753908455241,3.99727956,117200.0,117190.0,0.06948594]
[1753908455664,3.98392569,117200.0,117190.0,0.06948594]
[1753908455876,3.97539356,117200.0,117190.0,0.06948594]
[1753908456932,3.66541224,117200.0,117190.0,0.06948594]
[1753908457150,3.79621224,117200.0,117190.0,0.06948594]
[1753908457813,1.16629124,117200.0,117190.0,0.06948594]
[1753908458028,3.80474422,117200.0,117190.0,0.06948594]
[1753908458445,3.81809913,117200.0,117190.0,0.06948594]
[1753908458789,1.18817813,117200.0,117190.0,0.06948594]
[1753908459003,2.88250066,117200.0,117190.0,0.13824594]
[1753908459239,3.21450369,117200.0,117190.0,0.13824594]
[1753908459445,3.20915997,117200.0,117190.0,0.13824594]
[1753908459843,2.86915997,117200.0,117190.0,0.13824594]
[1753908460049,3.20915997,117200.0,117190.0,0.13824594]
[1753908460316,3.29363727,117200.0,117190.0,0.13824594]
[1753908461123,3.29363727,117200.0,117190.0,0.13527594]
[1753908461333,3.78414927,117200.0,117190.0,0.13527594]
[1753908461545,3.77873729,117200.0,117190.0,0.13527594]
[1753908461739,3.77020136,117200.0,117190.0,0.13527594]
[1753908462151,3.1628731,117200.0,117190.0,0.13527594]
[1753908462374,3.2936331,117200.0,117190.0,0.13824594]
[1753908462875,3.27764262,117200.0,117190.0,0.13824594]
[1753908463563,3.27764262,117200.0,117190.0,0.13527594]
[1753908463765,3.34346262,117200.0,117190.0,0.13527594]
[1753908465170,3.34658262,117200.0,117190.0,0.13527594]
[1753908465828,3.35511446,117200.0,117190.0,0.13527594]
[1753908466503,3.35511438,117200.0,117190.0,0.13527594]
[1753908467003,3.34658262,117200.0,117190.0,0.13527594]
[1753908467282,3.27063716,117200.0,117190.0,0.13527594]
[1753908467441,0.64071616,117200.0,117190.0,0.13527594]
[1753908467642,3.26210532,117200.0,117190.0,0.13527594]
[1753908467888,3.67025832,117200.0,117190.0,0.13527594]
[1753908468088,3.67826201,117200.0,117190.0,0.13527594]
[1753908468492,3.29295864,117200.0,117190.0,0.13527594]
[1753908468710,3.28442666,117200.0,117190.0,0.07148594]
[1753908469125,3.2758949,117200.0,117190.0,0.07148594]
[1753908469336,3.2758949,117200.0,117190.0,0.13527594]
[1753908470020,3.28442666,117200.0,117190.0,0.13527594]
[1753908470471,3.2758949,117200.0,117190.0,0.13527594]
[1753908471782,3.28495495,117200.0,117190.0,0.07148594]
[1753908472010,3.69258321,117200.0,117190.0,0.06948594]
[1753908472663,3.70111534,117200.0,117190.0,0.06948594]
[1753908472878,3.69258321,117200.0,117190.0,0.06948594]
[1753908473955,3.28495495,117200.0,117190.0,0.06948594]
[1753908474166,3.2929516,117200.0,117190.0,0.06948594]
[1753908474827,3.28495495,117200.0,117190.0,0.06948594]
[1753908477085,3.29348708,117200.0,117190.0,0.06948594]
[1753908478171,3.30201935,117200.0,117190.0,0.06948594]
[1753908478376,3.29348708,117200.0,117190.0,0.06948594]
[1753908478799,3.28495495,117200.0,117190.0,0.06948594]
[1753908479001,3.29348708,117200.0,117190.0,0.06948594]
[1753908479629,3.3036732,117200.0,117190.0,0.06948594]
[1753908479884,3.30367327,117200.0,117190.0,0.06948594]
[1753908480094,3.29514107,117200.0,117190.0,0.06948594]
[1753908480987,3.295141,117200.0,117190.0,0.06948594]
[1753908481294,3.28768703,117200.0,117190.0,0.06948594]
[1753908481500,3.37216433,117200.0,117190.0,0.06948594]
[1753908481912,3.36363228,117200.0,117190.0,0.06948594]
[1753908482533,3.38069653,117200.0,117190.0,0.06948594]
[1753908482761,3.37216433,117200.0,117190.0,0.06948594]
[1753908482999,3.38069646,117200.0,117190.0,0.06948594]
[1753908483242,3.37216433,117200.0,117190.0,0.06948594]
[1753908484029,3.36417132,117200.0,117190.0,0.06948594]
[1753908484238,3.36417125,117200.0,117190.0,0.06948594]
[1753908484698,0.74278238,117200.0,117190.0,0.06948594]
[1753908484935,3.37270389,117200.0,117190.0,0.06948594]
[1753908485387,3.38069335,117200.0,117190.0,0.06948594]
[1753908485824,3.37216108,117200.0,117190.0,0.06948594]
[1753908486035,3.36417162,117200.0,117190.0,0.06948594]
[1753908486744,3.37216187,117200.0,117190.0,0.06948594]
[1753908488101,3.38814662,117200.0,117190.0,0.06948594]
[1753908488310,3.38814654,117200.0,117190.0,0.06948594]
[1753908489403,3.39667874,117200.0,117190.0,0.06948594]
[1753908489851,3.38814988,117200.0,117190.0,0.06948594]
[1753908490088,3.39668208,117200.0,117190.0,0.06948594]
[1753908490304,3.30367258,117200.0,117190.0,0.06948594]
[1753908490574,3.30367306,117200.0,117190.0,0.06948594]
[1753908490786,3.30367321,117200.0,117190.0,0.06948594]
[1753908490991,3.31220534,117200.0,117190.0,0.06948594]
[1753908491207,3.32073769,117200.0,117190.0,0.06948594]
[1753908491411,3.40521499,117200.0,117190.0,0.06948594]
[1753908491643,3.56733154,117200.0,117190.0,0.06948594]
[1753908491858,3.39668308,117200.0,117190.0,0.06948594]
[1753908492068,3.38815073,117200.0,117190.0,0.06948594]
[1753908492495,3.37961853,117200.0,117190.0,0.06948594]
[1753908492703,3.37961792,117200.0,117190.0,0.06948594]
[1753908493318,3.38815019,117200.0,117190.0,0.06948594]
[1753908493527,3.39668261,117200.0,117190.0,0.06948594]
[1753908493760,3.97534424,117200.0,117190.0,0.00848594]
[1753908493976,4.00502476,117200.0,117190.0,0.00848594]
[1753908494191,4.0183795,117200.0,117190.0,0.00848594]
[1753908494420,3.9958022,117200.0,117190.0,0.00848594]
[1753908494645,3.58817394,117200.0,117190.0,0.00848594]
[1753908494862,3.9339022,117200.0,117190.0,0.00848594]
[1753908495090,3.92536993,117200.0,117190.0,0.00848594]
[1753908495570,4.18726993,117200.0,117190.0,0.00848594]
[1753908495813,4.27174723,117200.0,117190.0,0.00848594]
[1753908496036,4.69779513,117200.0,117190.0,0.00848594]
[1753908496264,4.72345613,117200.0,117190.0,0.00848594]
[1753908496481,4.74744477,117200.0,117190.0,0.00048594]
[1753908496731,4.74742909,117200.0,117190.0,0.00048594]
[1753908496977,4.74842909,117200.0,117190.0,0.00248594]
[1753908497678,2.98698904,117170.0,117160.0,0.06343]
[1753908497934,3.11766904,117170.0,117160.0,0.06562565]
[1753908498190,3.18291904,117170.0,117160.0,0.06562565]
[1753908498434,3.19456314,117170.0,117160.0,0.06562565]
[1753908498856,3.19456314,117170.0,117160.0,0.00014565]
[1753908498857,3.85682244,117170.0,117160.0,0.00014565]
[1753908499083,3.93148164,117170.0,117160.0,0.00014565]
[1753908499293,3.18653846,117170.0,117160.0,0.00014565]
[1753908499508,3.20252732,117170.0,117160.0,0.06875565]
[1753908499704,3.2116808,117170.0,117160.0,0.47738391]
[1753908499922,3.39090748,117170.0,117160.0,0.06975565]
[1753908500131,3.22763438,117170.0,117160.0,0.06975565]
[1753908500362,3.24537607,117170.0,117160.0,0.06875565]
[1753908500573,3.46000194,117170.0,117160.0,0.13255565]
[1753908500816,3.46200194,117170.0,117160.0,0.13342565]
[1753908501019,3.46200194,117170.0,117160.0,0.13042565]
[1753908501020,3.28177519,117170.0,117160.0,0.13042565]
[1753908501236,3.28930979,117170.0,117160.0,0.12942565]
[1753908501455,3.29030979,117170.0,117160.0,0.13542565]
[1753908501690,3.28177519,117170.0,117160.0,0.13542565]
[1753908501895,3.21223911,117170.0,117160.0,0.13542565]
[1753908502127,0.02716081,117170.0,117160.0,0.54618391]
[1753908502366,0.341,117170.0,117160.0,0.54618391]
[1753908502836,0.342,117170.0,117160.0,0.13955565]
[1753908502975,0.342,117170.0,117160.0,0.54718391]
[1753908503759,0.342,117170.0,117160.0,0.13955565]
[1753908503973,0.342,117170.0,117160.0,0.54718391]
[1753908504182,0.342,117170.0,117160.0,0.13955565]
[1753908504610,0.52299035,117170.0,117160.0,0.13955565]